[Event "Titled Tuesday Blitz January 31 Late 2023"]
[White "Kraus, Tomas"]
[Black "Hasanagic, Anel"]
[WhiteFideId "331708"]
[BlackFideId "14605791"]
[WhiteElo "2473"]
[BlackElo "2243"]
[Result "0-1"]
[Round "02"]
[TimeControl "180+2"]
[Date "2023.01.31"]
[WhiteClock "0:00:02"]
[BlackClock "0:00:02"]

1. e4 {[%clk 0:02:59]}  c6 {[%clk 0:02:47]} 2. d4 {[%clk 0:02:55]}  d5 {[%clk 0:02:47]} 3. e5 {[%clk 0:02:52]}  c5 {[%clk 0:02:47]} 4. dxc5 {[%clk 0:02:50]}  Nc6 {[%clk 0:02:44]} 5. f4 {[%clk 0:02:43]}  Nh6 {[%clk 0:02:43]} 6. a3 {[%clk 0:02:36]}  a5 {[%clk 0:02:40]} 7. Bb5 {[%clk 0:02:28]}  Bg4 {[%clk 0:02:31]} 8. Qd4 {[%clk 0:02:10]}  e6 {[%clk 0:02:21]} 9. Qa4 {[%clk 0:01:52]}  Rc8 {[%clk 0:02:16]} 10. Be3 {[%clk 0:01:52]}  Nf5 {[%clk 0:02:14]} 11. Bf2 {[%clk 0:01:51]}  Bh5 {[%clk 0:01:57]} 12. Nd2 {[%clk 0:01:44]}  g5 {[%clk 0:01:56]} 13. Nh3 {[%clk 0:01:11]}  g4 {[%clk 0:00:59]} 14. Ng1 {[%clk 0:01:09]}  Be7 {[%clk 0:00:56]} 15. g3 {[%clk 0:01:05]}  Bg6 {[%clk 0:00:54]} 16. Ne2 {[%clk 0:00:58]}  Kf8 {[%clk 0:00:53]} 17. O-O-O {[%clk 0:00:56]}  Na7 {[%clk 0:00:47]} 18. Nb3 {[%clk 0:00:51]}  Qc7 {[%clk 0:00:26]} 19. h3 {[%clk 0:00:43]}  gxh3 {[%clk 0:00:19]} 20. Rxh3 {[%clk 0:00:44]}  f6 {[%clk 0:00:14]} 21. g4 {[%clk 0:00:37]}  Ng7 {[%clk 0:00:14]} 22. Bd4 {[%clk 0:00:31]}  f5 {[%clk 0:00:05]} 23. g5 {[%clk 0:00:29]}  Kf7 {[%clk 0:00:05]} 24. Ng3 {[%clk 0:00:23]}  Nxb5 {[%clk 0:00:04]} 25. Qxb5 {[%clk 0:00:22]}  a4 {[%clk 0:00:05]} 26. Qxa4 {[%clk 0:00:21]}  Qc6 {[%clk 0:00:05]} 27. Qb4 {[%clk 0:00:20]}  Rb8 {[%clk 0:00:04]} 28. Na5 {[%clk 0:00:19]}  Qc7 {[%clk 0:00:04]} 29. Qb6 {[%clk 0:00:18]}  Qd7 {[%clk 0:00:04]} 30. Qb3 {[%clk 0:00:07]}  Rhc8 {[%clk 0:00:04]} 31. Qb4 {[%clk 0:00:06]}  b6 {[%clk 0:00:04]} 32. c6 {[%clk 0:00:02]}  Rxc6 {[%clk 0:00:02]} 0-1


[Site "https://www.chess.com"]

[Event "Titled Tuesday Blitz January 31 Late 2023"]
[White "Mladek, Richard"]
[Black "Sai Han Thiha"]
[WhiteFideId "386588"]
[BlackFideId "13012290"]
[WhiteElo "2436"]
[BlackElo "2070"]
[Result "1-0"]
[Round "02"]
[TimeControl "180+2"]
[Date "2023.01.31"]
[WhiteClock "0:00:10"]
[BlackClock "0:00:07"]

1. d4 {[%clk 0:03:00]}  Nf6 {[%clk 0:03:00]} 2. c4 {[%clk 0:03:01]}  g6 {[%clk 0:03:00]} 3. Nc3 {[%clk 0:03:01]}  Bg7 {[%clk 0:03:01]} 4. h4 {[%clk 0:02:53]}  c5 {[%clk 0:02:58]} 5. d5 {[%clk 0:02:52]}  h5 {[%clk 0:02:57]} 6. e4 {[%clk 0:02:44]}  d6 {[%clk 0:02:57]} 7. Be2 {[%clk 0:02:43]}  O-O {[%clk 0:02:56]} 8. Nh3 {[%clk 0:02:42]}  e6 {[%clk 0:02:46]} 9. Ng5 {[%clk 0:02:41]}  exd5 {[%clk 0:02:45]} 10. cxd5 {[%clk 0:02:41]}  a6 {[%clk 0:02:12]} 11. a4 {[%clk 0:02:41]}  Qe7 {[%clk 0:02:04]} 12. O-O {[%clk 0:02:38]}  Ng4 {[%clk 0:01:56]} 13. Bf4 {[%clk 0:02:27]}  Nd7 {[%clk 0:01:54]} 14. Ra3 {[%clk 0:02:23]}  Nde5 {[%clk 0:01:49]} 15. a5 {[%clk 0:02:17]}  Rb8 {[%clk 0:01:49]} 16. Na4 {[%clk 0:02:16]}  Bd7 {[%clk 0:01:33]} 17. Nb6 {[%clk 0:02:10]}  Bb5 {[%clk 0:01:33]} 18. Bxb5 {[%clk 0:02:05]}  axb5 {[%clk 0:01:34]} 19. Qe2 {[%clk 0:02:06]}  Nc4 {[%clk 0:01:10]} 20. Nxc4 {[%clk 0:01:57]}  bxc4 {[%clk 0:01:11]} 21. Ra2 {[%clk 0:01:48]}  Be5 {[%clk 0:01:07]} 22. Bc1 {[%clk 0:01:30]}  b5 {[%clk 0:01:06]} 23. f3 {[%clk 0:01:22]}  Nf6 {[%clk 0:00:35]} 24. Be3 {[%clk 0:01:11]}  Ra8 {[%clk 0:00:33]} 25. Qd2 {[%clk 0:01:06]}  Nh7 {[%clk 0:00:15]} 26. f4 {[%clk 0:00:53]}  Nxg5 {[%clk 0:00:12]} 27. hxg5 {[%clk 0:00:48]}  Bg7 {[%clk 0:00:12]} 28. f5 {[%clk 0:00:44]}  Be5 {[%clk 0:00:07]} 29. f6 {[%clk 0:00:38]}  Qd7 {[%clk 0:00:06]} 30. Bf4 {[%clk 0:00:33]}  Bxf4 {[%clk 0:00:05]} 31. Qxf4 {[%clk 0:00:33]}  Rfe8 {[%clk 0:00:05]} 32. Re1 {[%clk 0:00:33]}  Re5 {[%clk 0:00:05]} 33. Re3 {[%clk 0:00:27]}  b4 {[%clk 0:00:05]} 34. Qf1 {[%clk 0:00:23]}  Rxg5 {[%clk 0:00:04]} 35. Qxc4 {[%clk 0:00:19]}  Re5 {[%clk 0:00:04]} 36. a6 {[%clk 0:00:18]}  Qa7 {[%clk 0:00:04]} 37. Qb5 {[%clk 0:00:19]}  Qc7 {[%clk 0:00:04]} 38. Qb7 {[%clk 0:00:19]}  Qxb7 {[%clk 0:00:02]} 39. axb7 {[%clk 0:00:19]}  Rb8 {[%clk 0:00:03]} 40. Ra8 {[%clk 0:00:18]}  Ree8 {[%clk 0:00:04]} 41. Ra7 {[%clk 0:00:18]}  Red8 {[%clk 0:00:04]} 42. e5 {[%clk 0:00:18]}  dxe5 {[%clk 0:00:04]} 43. Rxe5 {[%clk 0:00:19]}  Rd7 {[%clk 0:00:04]} 44. Re7 {[%clk 0:00:18]}  Rdd8 {[%clk 0:00:04]} 45. Rc7 {[%clk 0:00:16]}  c4 {[%clk 0:00:04]} 46. Rxc4 {[%clk 0:00:16]}  Kf8 {[%clk 0:00:05]} 47. d6 {[%clk 0:00:13]}  Ke8 {[%clk 0:00:03]} 48. Rc7 {[%clk 0:00:12]}  Rxd6 {[%clk 0:00:04]} 49. Re7+ {[%clk 0:00:09]}  Kf8 {[%clk 0:00:04]} 50. Rc7 {[%clk 0:00:06]}  Ke8 {[%clk 0:00:04]} 51. Re7+ {[%clk 0:00:06]}  Kf8 {[%clk 0:00:03]} 52. Ra8 {[%clk 0:00:06]}  Rdd8 {[%clk 0:00:03]} 53. Rxb8 {[%clk 0:00:06]}  Rxb8 {[%clk 0:00:04]} 54. Rc7 {[%clk 0:00:07]}  Ke8 {[%clk 0:00:04]} 55. Rc8+ {[%clk 0:00:07]}  Kd7 {[%clk 0:00:04]} 56. Rxb8 {[%clk 0:00:08]}  Kc7 {[%clk 0:00:05]} 57. Rf8 {[%clk 0:00:09]}  Kxb7 {[%clk 0:00:06]} 58. Rxf7+ {[%clk 0:00:10]}  Kc6 {[%clk 0:00:07]} 59. Rg7 {[%clk 0:00:10]} 1-0


[Site "https://www.chess.com"]

[Event "Titled Tuesday Blitz January 31 Late 2023"]
[White "Sarkar, Justin"]
[Black "Machidon, Cristi"]
[WhiteFideId "2010011"]
[BlackFideId "13904590"]
[WhiteElo "2309"]
[BlackElo "2301"]
[Result "0-1"]
[Round "02"]
[TimeControl "180+2"]
[Date "2023.01.31"]
[WhiteClock "0:00:06"]
[BlackClock "0:01:26"]

1. a4 {[%clk 0:02:38]}  e5 {[%clk 0:02:57]} 2. a5 {[%clk 0:02:37]}  Nf6 {[%clk 0:02:54]} 3. e3 {[%clk 0:02:32]}  d5 {[%clk 0:02:53]} 4. d4 {[%clk 0:02:29]}  exd4 {[%clk 0:02:48]} 5. exd4 {[%clk 0:02:28]}  Bd6 {[%clk 0:02:46]} 6. Bd3 {[%clk 0:02:23]}  O-O {[%clk 0:02:45]} 7. Ne2 {[%clk 0:02:19]}  Nc6 {[%clk 0:02:34]} 8. c3 {[%clk 0:02:03]}  Re8 {[%clk 0:02:20]} 9. O-O {[%clk 0:02:00]}  Ne4 {[%clk 0:02:06]} 10. f3 {[%clk 0:01:50]}  Qh4 {[%clk 0:01:48]} 11. Bf4 {[%clk 0:00:10]}  Bxf4 {[%clk 0:01:44]} 12. Nxf4 {[%clk 0:00:09]}  Qxf4 {[%clk 0:01:42]} 13. fxe4 {[%clk 0:00:08]}  Qe3+ {[%clk 0:01:42]} 14. Kh1 {[%clk 0:00:07]}  dxe4 {[%clk 0:01:33]} 15. Bc4 {[%clk 0:00:06]}  Be6 {[%clk 0:01:26]} 0-1


[Site "https://www.chess.com"]

[Event "Titled Tuesday Blitz January 31 Late 2023"]
[White "Kim, Sergey"]
[Black "Kaganskiy, Gleb"]
[WhiteFideId "13700570"]
[BlackFideId "4132025"]
[WhiteElo "2295"]
[BlackElo "2205"]
[Result "1-0"]
[Round "02"]
[TimeControl "180+2"]
[Date "2023.01.31"]
[WhiteClock "0:01:46"]
[BlackClock "0:00:19"]

1. d4 {[%clk 0:03:00]}  d6 {[%clk 0:02:58]} 2. c4 {[%clk 0:03:00]}  e5 {[%clk 0:02:58]} 3. Nf3 {[%clk 0:03:00]}  e4 {[%clk 0:02:57]} 4. Ng5 {[%clk 0:03:00]}  f5 {[%clk 0:02:57]} 5. Nc3 {[%clk 0:03:00]}  c6 {[%clk 0:02:57]} 6. h4 {[%clk 0:03:00]}  h6 {[%clk 0:02:53]} 7. Nh3 {[%clk 0:02:59]}  Qxh4 {[%clk 0:02:53]} 8. g3 {[%clk 0:02:56]}  Qh5 {[%clk 0:02:53]} 9. Bg2 {[%clk 0:02:55]}  Qf7 {[%clk 0:02:52]} 10. Bf4 {[%clk 0:02:50]}  Nf6 {[%clk 0:02:39]} 11. Qb3 {[%clk 0:02:43]}  Rg8 {[%clk 0:02:32]} 12. d5 {[%clk 0:02:39]}  g5 {[%clk 0:02:28]} 13. Be3 {[%clk 0:02:38]}  Ng4 {[%clk 0:02:23]} 14. O-O-O {[%clk 0:02:30]}  Nxe3 {[%clk 0:02:20]} 15. fxe3 {[%clk 0:02:31]}  Na6 {[%clk 0:02:15]} 16. Rhf1 {[%clk 0:02:29]}  Nc5 {[%clk 0:02:14]} 17. Qa3 {[%clk 0:02:29]}  Qg6 {[%clk 0:02:08]} 18. Nf2 {[%clk 0:02:21]}  Bg7 {[%clk 0:02:07]} 19. g4 {[%clk 0:02:20]}  Bxc3 {[%clk 0:02:05]} 20. Qxc3 {[%clk 0:02:18]}  fxg4 {[%clk 0:02:05]} 21. Qd4 {[%clk 0:02:13]}  Bf5 {[%clk 0:01:58]} 22. dxc6 {[%clk 0:02:12]}  bxc6 {[%clk 0:01:56]} 23. Qxd6 {[%clk 0:02:12]}  Qxd6 {[%clk 0:01:54]} 24. Rxd6 {[%clk 0:02:11]}  Rg6 {[%clk 0:01:46]} 25. Rxg6 {[%clk 0:02:08]}  Bxg6 {[%clk 0:01:47]} 26. Nxg4 {[%clk 0:02:08]}  h5 {[%clk 0:01:20]} 27. Ne5 {[%clk 0:02:05]}  Bh7 {[%clk 0:01:14]} 28. Rf7 {[%clk 0:02:03]}  Bg8 {[%clk 0:01:08]} 29. Rg7 {[%clk 0:02:03]}  O-O-O {[%clk 0:01:01]} 30. Rxg5 {[%clk 0:01:58]}  Be6 {[%clk 0:00:53]} 31. Nxc6 {[%clk 0:01:53]}  Rf8 {[%clk 0:00:22]} 32. Rxc5 {[%clk 0:01:50]}  Kb7 {[%clk 0:00:21]} 33. Nd4 {[%clk 0:01:47]}  Bd7 {[%clk 0:00:19]} 34. Bxe4+ {[%clk 0:01:46]} 1-0


[Site "https://www.chess.com"]

[Event "Titled Tuesday Blitz January 31 Late 2023"]
[White "Al-Tarboush, Ward"]
[Black "Gonzalez, Francisco Silva"]
[WhiteFideId "7601450"]
[BlackFideId "1512285"]
[WhiteElo "2256"]
[BlackElo "2021"]
[Result "0-1"]
[Round "02"]
[TimeControl "180+2"]
[Date "2023.01.31"]
[WhiteClock "0:00:06"]
[BlackClock "0:00:42"]

1. e4 {[%clk 0:03:00]}  e5 {[%clk 0:02:59]} 2. Nf3 {[%clk 0:03:00]}  Nc6 {[%clk 0:02:59]} 3. Bb5 {[%clk 0:03:01]}  g6 {[%clk 0:02:58]} 4. O-O {[%clk 0:03:00]}  Bg7 {[%clk 0:02:58]} 5. c3 {[%clk 0:03:00]}  a6 {[%clk 0:02:57]} 6. Ba4 {[%clk 0:03:00]}  Nge7 {[%clk 0:02:57]} 7. d4 {[%clk 0:03:00]}  exd4 {[%clk 0:02:58]} 8. cxd4 {[%clk 0:03:00]}  O-O {[%clk 0:02:57]} 9. Nc3 {[%clk 0:02:59]}  b5 {[%clk 0:02:56]} 10. Bb3 {[%clk 0:02:59]}  d6 {[%clk 0:02:56]} 11. Bg5 {[%clk 0:02:58]}  h6 {[%clk 0:02:56]} 12. Bh4 {[%clk 0:02:55]}  Bg4 {[%clk 0:02:55]} 13. Nd5 {[%clk 0:02:52]}  g5 {[%clk 0:02:55]} 14. h3 {[%clk 0:02:13]}  Bxf3 {[%clk 0:02:41]} 15. Qxf3 {[%clk 0:02:14]}  Nxd4 {[%clk 0:02:41]} 16. Qg4 {[%clk 0:02:03]}  Nxb3 {[%clk 0:02:34]} 17. axb3 {[%clk 0:01:56]}  Nxd5 {[%clk 0:02:34]} 18. exd5 {[%clk 0:01:54]}  gxh4 {[%clk 0:02:34]} 19. Rfe1 {[%clk 0:01:51]}  Qg5 {[%clk 0:02:33]} 20. Qf3 {[%clk 0:01:47]}  Bxb2 {[%clk 0:02:32]} 21. Ra2 {[%clk 0:01:46]}  Bg7 {[%clk 0:02:29]} 22. Rae2 {[%clk 0:01:44]}  a5 {[%clk 0:02:28]} 23. Re4 {[%clk 0:01:44]}  h5 {[%clk 0:02:26]} 24. Rf4 {[%clk 0:01:38]}  a4 {[%clk 0:02:25]} 25. Rf5 {[%clk 0:01:38]}  Qg6 {[%clk 0:02:18]} 26. Rxh5 {[%clk 0:01:38]}  a3 {[%clk 0:02:18]} 27. Rxh4 {[%clk 0:01:36]}  a2 {[%clk 0:02:18]} 28. Rg4 {[%clk 0:01:36]}  a1=Q {[%clk 0:02:17]} 29. Rxa1 {[%clk 0:01:33]}  Rxa1+ {[%clk 0:02:17]} 30. Kh2 {[%clk 0:01:33]}  Qxg4 {[%clk 0:02:10]} 31. Qxg4 {[%clk 0:01:32]}  f5 {[%clk 0:02:10]} 32. Qg6 {[%clk 0:01:31]}  Re1 {[%clk 0:02:07]} 33. h4 {[%clk 0:01:27]}  Rf6 {[%clk 0:02:04]} 34. Qg5 {[%clk 0:01:28]}  Kf7 {[%clk 0:02:04]} 35. Qd2 {[%clk 0:01:22]}  Re5 {[%clk 0:02:00]} 36. Qc2 {[%clk 0:01:18]}  Kg6 {[%clk 0:01:55]} 37. Qxc7 {[%clk 0:01:10]}  Rxd5 {[%clk 0:01:56]} 38. Qc6 {[%clk 0:01:08]}  Re5 {[%clk 0:01:55]} 39. f4 {[%clk 0:01:06]}  Re4 {[%clk 0:01:51]} 40. Qxb5 {[%clk 0:01:04]}  Rxf4 {[%clk 0:01:50]} 41. Qe8+ {[%clk 0:01:05]}  Kh7 {[%clk 0:01:40]} 42. Kh3 {[%clk 0:01:05]}  Rh6 {[%clk 0:01:38]} 43. g3 {[%clk 0:01:05]}  Re4 {[%clk 0:01:33]} 44. Qf7 {[%clk 0:01:00]}  Re5 {[%clk 0:01:32]} 45. b4 {[%clk 0:00:59]}  Rf6 {[%clk 0:01:22]} 46. Qh5+ {[%clk 0:00:58]}  Kg8 {[%clk 0:01:23]} 47. b5 {[%clk 0:00:57]}  Rh6 {[%clk 0:01:20]} 48. Qg5 {[%clk 0:00:26]}  Rxb5 {[%clk 0:01:03]} 49. Qd8+ {[%clk 0:00:26]}  Bf8 {[%clk 0:01:04]} 50. Qd7 {[%clk 0:00:27]}  Re5 {[%clk 0:01:03]} 51. Kg2 {[%clk 0:00:25]}  Rg6 {[%clk 0:01:00]} 52. Kf3 {[%clk 0:00:22]}  Rg4 {[%clk 0:00:56]} 53. h5 {[%clk 0:00:20]}  Rg5 {[%clk 0:00:53]} 54. h6 {[%clk 0:00:15]}  Rh5 {[%clk 0:00:52]} 55. g4 {[%clk 0:00:10]}  fxg4+ {[%clk 0:00:46]} 56. Qxg4+ {[%clk 0:00:06]}  Reg5 {[%clk 0:00:45]} 57. Qe6+ {[%clk 0:00:06]}  Kh7 {[%clk 0:00:42]} 58. Qf7+ {[%clk 0:00:06]}  Bg7 {[%clk 0:00:42]} 0-1


[Site "https://www.chess.com"]

[Event "Titled Tuesday Blitz January 31 Late 2023"]
[White "Poltorak, Sebastian"]
[Black "Nikologorsky, Matfei"]
[WhiteFideId "1199498"]
[BlackFideId "24102474"]
[WhiteElo "2354"]
[BlackElo "2182"]
[Result "1-0"]
[Round "02"]
[TimeControl "180+2"]
[Date "2023.01.31"]
[WhiteClock "0:00:12"]
[BlackClock "0:00:06"]

1. e4 {[%clk 0:03:00]}  c5 {[%clk 0:02:59]} 2. Nc3 {[%clk 0:03:01]}  e6 {[%clk 0:02:58]} 3. Nge2 {[%clk 0:03:00]}  a6 {[%clk 0:02:56]} 4. g3 {[%clk 0:02:58]}  Nc6 {[%clk 0:02:56]} 5. Bg2 {[%clk 0:02:58]}  d6 {[%clk 0:02:52]} 6. O-O {[%clk 0:02:58]}  g6 {[%clk 0:02:52]} 7. d4 {[%clk 0:02:58]}  cxd4 {[%clk 0:02:50]} 8. Nxd4 {[%clk 0:02:58]}  Bg7 {[%clk 0:02:50]} 9. Be3 {[%clk 0:02:59]}  Nge7 {[%clk 0:02:49]} 10. Qd2 {[%clk 0:02:55]}  h6 {[%clk 0:02:43]} 11. Rad1 {[%clk 0:02:49]}  Qc7 {[%clk 0:02:43]} 12. Nxc6 {[%clk 0:02:49]}  Nxc6 {[%clk 0:02:34]} 13. Qxd6 {[%clk 0:02:42]}  Qxd6 {[%clk 0:02:34]} 14. Rxd6 {[%clk 0:02:42]}  Bxc3 {[%clk 0:02:34]} 15. bxc3 {[%clk 0:02:42]}  Kf8 {[%clk 0:02:10]} 16. Rfd1 {[%clk 0:02:34]}  Kg7 {[%clk 0:02:10]} 17. f4 {[%clk 0:02:32]}  e5 {[%clk 0:02:07]} 18. fxe5 {[%clk 0:02:28]}  Re8 {[%clk 0:02:06]} 19. Bd4 {[%clk 0:02:24]}  Nxe5 {[%clk 0:01:57]} 20. Rd5 {[%clk 0:02:23]}  f6 {[%clk 0:01:55]} 21. Bxe5 {[%clk 0:02:17]}  fxe5 {[%clk 0:01:52]} 22. h3 {[%clk 0:02:00]}  Be6 {[%clk 0:01:25]} 23. Rxe5 {[%clk 0:01:59]}  Rac8 {[%clk 0:01:26]} 24. Bf3 {[%clk 0:01:47]}  Rxc3 {[%clk 0:01:19]} 25. Bg4 {[%clk 0:01:41]}  Bf7 {[%clk 0:01:18]} 26. Rxe8 {[%clk 0:01:39]}  Bxe8 {[%clk 0:01:19]} 27. Rd8 {[%clk 0:01:39]}  Bc6 {[%clk 0:01:09]} 28. e5 {[%clk 0:01:37]}  Rxg3+ {[%clk 0:01:07]} 29. Kf2 {[%clk 0:01:35]}  Rg2+ {[%clk 0:01:07]} 30. Ke3 {[%clk 0:01:35]}  Rxc2 {[%clk 0:01:07]} 31. Rc8 {[%clk 0:01:32]}  Rxa2 {[%clk 0:01:01]} 32. Rc7+ {[%clk 0:01:32]}  Kf8 {[%clk 0:00:57]} 33. e6 {[%clk 0:01:32]}  Ra4 {[%clk 0:00:52]} 34. Kd3 {[%clk 0:00:48]}  h5 {[%clk 0:00:42]} 35. Bd1 {[%clk 0:00:46]}  Ra3+ {[%clk 0:00:43]} 36. Kd4 {[%clk 0:00:45]}  Rxh3 {[%clk 0:00:42]} 37. Ke5 {[%clk 0:00:41]}  Rh4 {[%clk 0:00:20]} 38. Bc2 {[%clk 0:00:39]}  Ke8 {[%clk 0:00:18]} 39. Bxg6+ {[%clk 0:00:34]}  Kd8 {[%clk 0:00:19]} 40. Rh7 {[%clk 0:00:35]}  Rh2 {[%clk 0:00:15]} 41. e7+ {[%clk 0:00:34]}  Kc8 {[%clk 0:00:14]} 42. Bf5+ {[%clk 0:00:21]}  Kb8 {[%clk 0:00:13]} 43. Rh6 {[%clk 0:00:21]}  Re2+ {[%clk 0:00:13]} 44. Kf6 {[%clk 0:00:21]}  Kc7 {[%clk 0:00:12]} 45. Rh8 {[%clk 0:00:16]}  Kb6 {[%clk 0:00:11]} 46. Rc8 {[%clk 0:00:14]}  Bb5 {[%clk 0:00:11]} 47. Rc3 {[%clk 0:00:12]}  h4 {[%clk 0:00:11]} 48. Rb3 {[%clk 0:00:13]}  Kc7 {[%clk 0:00:10]} 49. Rxb5 {[%clk 0:00:08]}  axb5 {[%clk 0:00:11]} 50. Be6 {[%clk 0:00:09]}  Rf2+ {[%clk 0:00:10]} 51. Kg7 {[%clk 0:00:09]}  Rg2+ {[%clk 0:00:10]} 52. Kh7 {[%clk 0:00:10]}  h3 {[%clk 0:00:09]} 53. e8=Q {[%clk 0:00:10]}  h2 {[%clk 0:00:09]} 54. Qd7+ {[%clk 0:00:11]}  Kb6 {[%clk 0:00:10]} 55. Qd6+ {[%clk 0:00:11]}  Ka7 {[%clk 0:00:10]} 56. Qc5+ {[%clk 0:00:11]}  Kb8 {[%clk 0:00:10]} 57. Qf8+ {[%clk 0:00:10]}  Ka7 {[%clk 0:00:10]} 58. Qc5+ {[%clk 0:00:10]}  Kb8 {[%clk 0:00:11]} 59. Qe5+ {[%clk 0:00:09]}  Ka7 {[%clk 0:00:11]} 60. Qe3+ {[%clk 0:00:09]}  Kb8 {[%clk 0:00:11]} 61. Qh3 {[%clk 0:00:09]}  Re2 {[%clk 0:00:09]} 62. Bd5 {[%clk 0:00:07]}  Ka7 {[%clk 0:00:08]} 63. Kg6 {[%clk 0:00:06]}  Kb8 {[%clk 0:00:06]} 64. Kf5 {[%clk 0:00:06]}  Ka7 {[%clk 0:00:06]} 65. Kf4 {[%clk 0:00:06]}  Kb8 {[%clk 0:00:06]} 66. Bf3 {[%clk 0:00:07]}  Rb2 {[%clk 0:00:05]} 67. Qh8+ {[%clk 0:00:06]}  Ka7 {[%clk 0:00:04]} 68. Qxb2 {[%clk 0:00:06]}  Kb6 {[%clk 0:00:05]} 69. Bh1 {[%clk 0:00:07]}  Kc5 {[%clk 0:00:04]} 70. Ke4 {[%clk 0:00:08]}  b6 {[%clk 0:00:05]} 71. Qc3+ {[%clk 0:00:08]}  Kd6 {[%clk 0:00:05]} 72. Qd4+ {[%clk 0:00:09]}  Kc7 {[%clk 0:00:05]} 73. Qd5 {[%clk 0:00:10]}  Kb8 {[%clk 0:00:06]} 74. Qd7 {[%clk 0:00:10]}  b4 {[%clk 0:00:05]} 75. Kd5 {[%clk 0:00:10]}  b3 {[%clk 0:00:05]} 76. Kc6 {[%clk 0:00:11]}  b2 {[%clk 0:00:06]} 77. Qb7# {[%clk 0:00:12]} 1-0


[Site "https://www.chess.com"]

[Event "Titled Tuesday Blitz January 31 Late 2023"]
[White "Mazurkiewicz, Michal"]
[Black "Ismagilov, Damir"]
[WhiteFideId "1124943"]
[BlackFideId "34199982"]
[WhiteElo "2145"]
[BlackElo "2156"]
[Result "1-0"]
[Round "02"]
[TimeControl "180+2"]
[Date "2023.01.31"]
[WhiteClock "0:00:39"]
[BlackClock "0:00:18"]

1. e4 {[%clk 0:03:00]}  c6 {[%clk 0:02:59]} 2. d3 {[%clk 0:03:00]}  d5 {[%clk 0:02:58]} 3. Nd2 {[%clk 0:03:01]}  g6 {[%clk 0:02:58]} 4. Ngf3 {[%clk 0:03:01]}  Bg7 {[%clk 0:02:58]} 5. g3 {[%clk 0:03:02]}  dxe4 {[%clk 0:02:54]} 6. dxe4 {[%clk 0:03:03]}  e5 {[%clk 0:02:53]} 7. Bg2 {[%clk 0:03:02]}  Ne7 {[%clk 0:02:49]} 8. O-O {[%clk 0:03:02]}  O-O {[%clk 0:02:49]} 9. Nc4 {[%clk 0:03:03]}  Qc7 {[%clk 0:02:42]} 10. Qd6 {[%clk 0:02:56]}  Qxd6 {[%clk 0:02:32]} 11. Nxd6 {[%clk 0:02:57]}  Rd8 {[%clk 0:02:23]} 12. Nxc8 {[%clk 0:02:54]}  Rxc8 {[%clk 0:02:24]} 13. Bd2 {[%clk 0:02:48]}  Nd7 {[%clk 0:02:20]} 14. Bc3 {[%clk 0:02:48]}  f6 {[%clk 0:02:17]} 15. Rfd1 {[%clk 0:02:47]}  Rd8 {[%clk 0:02:16]} 16. Bf1 {[%clk 0:02:38]}  Nb6 {[%clk 0:02:05]} 17. a4 {[%clk 0:02:31]}  Kf8 {[%clk 0:01:59]} 18. a5 {[%clk 0:02:29]}  Nd7 {[%clk 0:01:55]} 19. b4 {[%clk 0:01:43]}  a6 {[%clk 0:01:47]} 20. Nd2 {[%clk 0:01:37]}  Kg8 {[%clk 0:01:13]} 21. Nc4 {[%clk 0:01:30]}  Nf8 {[%clk 0:01:12]} 22. Nd6 {[%clk 0:01:30]}  h5 {[%clk 0:01:05]} 23. Bc4+ {[%clk 0:01:25]}  Kh7 {[%clk 0:01:04]} 24. Nxb7 {[%clk 0:01:24]}  Rdb8 {[%clk 0:01:05]} 25. Nc5 {[%clk 0:01:18]}  Nc8 {[%clk 0:00:45]} 26. Nxa6 {[%clk 0:01:15]}  Rb7 {[%clk 0:00:45]} 27. Rd8 {[%clk 0:01:11]}  Rba7 {[%clk 0:00:39]} 28. Rad1 {[%clk 0:00:56]}  Nd7 {[%clk 0:00:24]} 29. R1xd7 {[%clk 0:00:51]}  Rxd7 {[%clk 0:00:22]} 30. Rxd7 {[%clk 0:00:52]}  Kh6 {[%clk 0:00:23]} 31. Nc5 {[%clk 0:00:43]}  Bf8 {[%clk 0:00:19]} 32. Ne6 {[%clk 0:00:41]}  Be7 {[%clk 0:00:18]} 33. h4 {[%clk 0:00:41]}  Rb8 {[%clk 0:00:17]} 34. Bd2+ {[%clk 0:00:41]}  g5 {[%clk 0:00:15]} 35. hxg5+ {[%clk 0:00:39]}  fxg5 {[%clk 0:00:15]} 36. Rxe7 {[%clk 0:00:39]}  Nxe7 {[%clk 0:00:16]} 37. Bxg5+ {[%clk 0:00:38]}  Kg6 {[%clk 0:00:17]} 38. Bxe7 {[%clk 0:00:39]}  Rxb4 {[%clk 0:00:18]} 39. Bxb4 {[%clk 0:00:39]} 1-0


[Site "https://www.chess.com"]